bitfinex-derivatives/quotes_BNBF0:USTF0_20250424
["timestamp","ask_amount","ask_price","bid_price","bid_amount"]
[1745476889628,0.28785905,605.69,603.94,1.45996058]
[1745476889828,0.28785905,605.69,603.95,1.45996058]
[1745476890025,0.28785905,605.69,603.96,1.45996058]
[1745476890228,0.28785905,605.69,603.97,1.45996058]
[1745476890425,0.28785905,605.69,603.98,1.45996058]
[1745476890727,0.28785905,605.69,603.99,2.53799267]
[1745476890930,0.28785905,605.69,604.0,1.45996058]
[1745476891230,1.26151995,605.7,604.01,2.53799267]
[1745476891429,1.26151995,605.7,604.02,1.45996058]
[1745476891624,1.26151995,605.7,604.03,2.53799267]
[1745476891825,1.26151995,605.7,604.04,1.45996058]
[1745476892030,1.26151995,605.71,604.05,1.45996058]
[1745476892230,1.26151995,605.71,604.06,1.45996058]
[1745476892531,0.28784238,605.69,604.07,1.45996058]
[1745476892732,0.28784238,605.69,604.08,1.45996058]
[1745476892930,0.28784238,605.69,604.09,1.45996058]
[1745476893128,0.28784238,605.69,604.1,1.45996058]
[1745476893324,0.28784238,605.69,604.11,2.53799267]
[1745476893525,0.28784238,605.69,604.12,1.45996058]
[1745476893731,0.28784238,605.69,604.13,0.84762084]
[1745476893931,0.28784238,605.69,604.14,0.84762084]
[1745476894133,1.26151995,605.71,604.15,0.84762084]
[1745476894329,0.28782929,605.68,604.16,1.07803209]
[1745476894633,1.26151995,605.37,604.16,1.07803209]
[1745476894933,1.26151995,605.37,604.17,1.07803209]
[1745476895533,1.26151995,605.37,604.18,1.07803209]
[1745476895833,1.26151995,605.37,604.19,1.07803209]
[1745476896634,1.26151995,605.37,604.2,1.07803209]
[1745476897337,1.26151995,605.37,604.21,1.07803209]
[1745476897838,1.26151995,605.39,604.21,1.07803209]
[1745476898038,1.26151995,605.39,604.22,1.07803209]
[1745476898338,1.26151995,605.39,604.23,1.07803209]
[1745476898939,1.26151995,605.39,604.24,1.07803209]
[1745476899241,1.26151995,605.39,603.97,1.096]
[1745476899535,1.26151995,605.39,603.98,1.46126758]
[1745476899737,1.26151995,605.39,603.99,2.5402836]
[1745476899934,1.26151995,605.39,604.0,1.46126758]
[1745476900135,1.26151995,605.39,604.01,2.5402836]
[1745476900439,1.26151995,605.34,604.02,1.46126758]
[1745476900635,1.26151995,605.34,604.03,2.5402836]
[1745476900835,1.26151995,605.34,604.04,1.46126758]
[1745476901039,1.26151995,605.34,604.05,2.5402836]
[1745476901235,1.26151995,605.34,604.06,1.46126758]
[1745476901437,0.28789715,605.33,604.07,2.54047264]
[1745476901736,0.28789715,605.33,604.08,1.46145662]
[1745476901935,0.28789715,605.33,604.09,1.46145662]
[1745476902241,0.28789715,605.33,604.1,2.54047264]
[1745476902537,0.28789715,605.33,604.11,1.46145662]
[1745476902741,0.28789715,605.33,604.12,1.46145662]
[1745476902938,0.28789715,605.33,604.13,1.46145662]
[1745476903134,0.28789715,605.33,604.12,1.07901602]
[1745476903338,0.28789715,605.33,604.13,1.46171071]
[1745476903540,0.28789715,605.33,604.14,2.54072673]
[1745476903740,1.26151995,605.26,604.15,0.8486348]
[1745476904244,1.26151995,605.26,604.16,1.07901602]
[1745476905237,1.26151995,605.26,604.17,1.07901602]
[1745476905642,0.28789715,605.33,604.18,1.07901602]
[1745476906041,0.28789715,605.33,604.19,1.07901602]
[1745476906544,0.28789715,605.33,604.2,1.07901602]
[1745476907242,0.28789715,605.33,604.21,1.07901602]
[1745476907743,0.28789715,605.33,604.22,1.07901602]
[1745476908543,0.28789715,605.33,604.23,1.07901602]
[1745476908940,0.28789715,605.33,604.24,1.07901602]
[1745476909145,1.26151995,605.49,604.24,1.07901602]
[1745476909345,0.28785548,605.32,604.24,1.07901602]
[1745476909546,0.28785548,605.32,604.25,1.07901602]
[1745476909846,1.26151995,605.49,604.26,1.07901602]
[1745476910246,1.26151995,605.51,604.27,1.07901602]
[1745476910445,0.2878531,605.48,604.27,1.07901602]
[1745476911147,0.2878531,605.48,604.28,1.07901602]
[1745476911547,0.2878531,605.48,604.29,1.07901602]
[1745476912249,0.2878531,605.48,604.3,1.92766274]
[1745476912450,0.2878531,605.48,604.31,0.84864672]
[1745476912748,0.2878531,605.48,604.32,1.07901602]
[1745476913543,0.2878531,605.48,604.33,1.07901602]
[1745476914145,0.2878531,605.48,604.34,1.07901602]
[1745476914651,0.2878531,605.48,604.35,1.46049407]
[1745476914850,0.2878531,605.48,604.36,1.46049407]
[1745476915052,0.2878531,605.48,604.37,1.92692925]
[1745476915353,0.2878531,605.48,604.37,1.07901602]
[1745476915751,0.2878531,605.48,604.38,1.07901602]
[1745476916751,0.2878531,605.48,604.39,1.07901602]
[1745476917150,0.2878531,605.48,604.4,1.07901602]
[1745476917446,0.2878531,605.48,604.41,1.07901602]
[1745476917947,0.2878531,605.48,604.42,1.07901602]
[1745476918152,1.26151995,606.02,604.42,1.07901602]
[1745476918352,1.26151995,606.17,604.42,1.07901602]
[1745476918655,1.26151995,606.17,604.43,1.07901602]
[1745476919353,0.28769009,606.16,604.44,1.07901602]
[1745476919948,0.28769009,606.16,604.45,1.07901602]
[1745476920755,0.28769009,606.16,604.46,1.07901602]
[1745476921053,1.26151995,606.17,604.46,1.07901602]
[1745476921349,1.26151995,606.17,604.47,1.07901602]
[1745476921853,2.14633602,607.14,604.47,1.07901602]
[1745476921854,1.26151995,606.31,604.47,1.07901602]
[1745476922353,0.28766631,606.3,604.11,1.614]
[1745476922653,0.28766631,606.3,604.12,2.53307008]
[1745476922854,0.28766631,606.3,604.13,1.45716527]
[1745476923049,0.28766631,606.3,604.14,1.45716198]
[1745476923354,0.28766631,606.3,604.15,2.53306679]
[1745476923554,0.28766631,606.3,604.16,1.45716198]
[1745476923755,0.28766631,606.3,604.17,1.45716198]
[1745476923949,0.28766631,606.3,604.18,2.53306679]
[1745476924149,1.26151995,606.31,604.19,1.45716198]
[1745476924352,1.26151995,606.31,604.2,1.45716198]
[1745476924556,1.26151995,606.31,604.21,2.53306679]
[1745476924750,1.26151995,606.31,604.22,1.45716198]
[1745476924953,1.26151995,606.31,604.23,2.53306679]
[1745476925156,1.26151995,606.31,604.24,2.53306679]
[1745476925356,0.28769603,606.3,604.25,1.45716198]
[1745476925554,0.28769603,606.3,604.26,2.53306679]
[1745476925755,1.26151995,605.88,604.27,2.53306679]
[1745476925958,1.26151995,605.88,604.28,1.45716198]
[1745476926156,1.26151995,605.88,604.29,1.45716198]
[1745476926356,1.26151995,605.88,604.3,0.84593528]
[1745476926557,1.26151995,605.88,604.31,0.84593528]
[1745476926757,1.26151995,605.88,604.31,1.07590481]
[1745476927172,1.26151995,605.88,604.32,1.07590481]
[1745476928262,1.26151995,605.91,604.33,1.07590481]
[1745476929062,1.26151995,605.91,604.34,1.07590481]
[1745476929263,1.26151995,605.91,604.35,1.326]
[1745476929563,1.26151995,605.91,604.36,1.07590481]
[1745476930258,1.26151995,605.91,604.37,1.07590481]
[1745476930765,1.26151995,605.91,604.38,1.07590481]
[1745476931165,0.60687803,612.13,604.38,1.07590481]
[1745476931166,1.26151995,605.76,604.38,1.07590481]
[1745476931360,1.26151995,605.76,604.39,1.07590481]
[1745476931862,1.26151995,605.76,604.35,1.326]
[1745476932266,1.26151995,605.76,604.36,1.07445601]
[1745476932762,1.26151995,605.76,604.37,1.07445601]
[1745476933667,1.26151995,605.76,604.38,1.07445601]
[1745476934062,1.26151995,605.76,604.39,1.07445601]
[1745476934367,1.26151995,605.72,604.39,1.07445601]
[1745476934561,1.26151995,605.72,604.35,1.326]
[1745476934965,1.26151995,605.72,604.36,1.0740883]
[1745476935568,1.26151995,605.72,604.37,1.0740883]
[1745476936265,0.28774599,605.71,604.37,1.0740883]
[1745476936568,0.28774599,605.71,604.38,1.0740883]
[1745476936868,0.28774599,605.71,604.39,1.521]
[1745476938966,0.28774599,605.71,604.4,1.742]
[1745476939170,1.26151995,605.79,604.4,1.742]
[1745476940472,0.28773409,605.78,604.4,1.742]
[1745476942073,1.26151995,605.85,604.4,1.742]
[1745476943074,1.26151995,605.91,604.4,1.742]
[1745476943375,0.28772696,605.84,604.4,1.742]
[1745476945474,1.26151995,605.83,604.4,1.742]
[1745476948272,2.14633602,606.21,604.4,1.742]
[1745476948273,1.26151995,605.61,604.4,1.742]
[1745476949377,0.28775551,605.6,604.4,1.742]
[1745476950482,1.26151995,605.48,604.4,1.742]
[1745476952381,0.28777097,605.47,604.4,1.742]
[1745476952883,1.26151995,605.24,604.4,1.742]
[1745476956186,1.26151995,605.22,604.4,1.742]
[1745476958089,1.26151995,605.24,604.4,1.742]
[1745476959186,1.26151995,605.24,604.4,3.451]
[1745476960987,1.26151995,605.24,604.4,4.927]
[1745476961193,1.26151995,605.27,604.4,4.927]
[1745476963494,1.26151995,605.27,604.41,1.91878045]
[1745476963691,1.26151995,605.27,604.42,0.84454721]
[1745476963892,1.26151995,605.27,604.43,1.91874278]
[1745476964092,1.26151995,605.27,604.44,0.84444927]
[1745476964286,1.26151995,605.27,604.43,1.07419557]
[1745476964495,1.26151995,605.27,604.44,0.84449386]
[1745476964695,1.26151995,605.27,604.45,0.84449386]
[1745476964892,1.26151995,605.27,604.43,1.07419557]
[1745476965092,1.26151995,605.27,604.44,0.84444408]
[1745476965294,1.26151995,605.27,604.45,0.84444408]
[1745476966297,1.26151995,605.27,604.46,1.07419557]
[1745476966898,2.14633602,605.37,604.46,1.07419557]
[1745476967099,1.26151995,606.05,604.47,1.07419557]
[1745476967399,1.26151995,606.05,604.48,2.15519557]
[1745476967600,0.28767106,606.04,604.48,2.15519557]
[1745476967899,0.28767106,606.04,604.49,1.214]
[1745476968199,0.28767106,606.04,604.5,1.07419557]
[1745476968498,0.28767106,606.04,604.51,1.07419557]
[1745476969099,1.26151995,606.05,604.51,1.07419557]
[1745476969295,1.26151995,606.11,604.51,1.07419557]
[1745476969500,0.28766631,606.04,604.52,1.07419557]
[1745476970294,0.28766631,606.04,604.53,1.07419557]
[1745476970595,0.28766631,606.04,604.54,1.07419557]
[1745476970900,0.28766631,606.04,604.55,1.07419557]
[1745476971500,0.28766631,606.04,604.49,1.214]
[1745476971797,0.28766631,606.04,604.56,1.07548807]
[1745476972100,1.26151995,606.13,604.56,1.07548807]
[1745476972399,1.26151995,606.13,604.57,1.07548807]
[1745476972704,0.28765085,606.12,604.57,1.07548807]
[1745476973000,0.28765085,606.12,604.58,1.07548807]
[1745476973301,0.28765085,606.12,604.49,1.214]
[1745476973601,0.28765085,606.12,604.5,1.07565417]
[1745476973903,1.26151995,606.07,604.5,1.07565417]
[1745476974402,1.26151995,606.07,604.51,1.07565417]
[1745476974802,1.26151995,606.07,604.52,1.07565417]
[1745476975000,1.26151995,606.07,604.53,1.07565417]
[1745476975498,0.28766155,606.06,604.54,1.07565417]
[1745476976002,0.28766155,606.06,604.55,1.07565417]
[1745476976303,1.26151995,605.92,604.55,1.07565417]
[1745476976500,1.26151995,605.92,604.49,1.214]
[1745476976799,1.26151995,605.92,604.5,1.07564146]
[1745476977703,1.26151995,605.92,604.51,1.07564146]
[1745476978304,1.26151995,605.92,604.52,1.07564146]
[1745476978505,0.28768176,605.91,604.52,1.07564146]
[1745476978904,0.28768176,605.91,604.53,1.07564146]
[1745476979403,0.28768176,605.91,604.54,1.07564146]
[1745476979606,1.26151995,605.9,604.54,1.07564146]
[1745476979906,1.26151995,605.9,604.55,1.07564146]
[1745476980407,1.26151995,605.9,604.56,1.07564146]
[1745476981304,1.26151995,605.9,604.49,1.214]
[1745476982007,1.26151995,605.78,604.49,1.214]
[1745476982705,1.26151995,605.78,604.5,1.085]
[1745476984208,1.26151995,605.53,604.5,1.085]
[1745476987710,1.26151995,605.51,604.5,1.085]
[1745476988409,1.26151995,605.51,604.51,1.746]
[1745476990605,0.28778763,605.5,604.51,1.746]
[1745476991010,1.26151995,605.45,604.51,1.746]
[1745476992110,1.26151995,605.45,604.52,1.188]
[1745476993412,0.28779358,605.44,604.52,1.188]
[1745476993613,1.54931353,605.44,604.52,1.188]
[1745476996014,1.26151995,605.44,604.52,1.188]
[1745476996215,1.26151995,606.28,604.52,1.188]
[1745476996410,0.28779477,605.43,604.52,1.188]
[1745476996713,1.26151995,606.28,604.52,1.188]
[1745476997415,0.28769485,606.27,604.52,1.188]
[1745476999116,1.26151995,606.28,604.52,1.188]
[1745477000412,0.28769485,606.27,604.52,1.188]
[1745477002115,1.26151995,606.29,604.52,1.188]
[1745477002417,0.28769366,606.26,604.52,1.188]
[1745477004017,1.26151995,606.24,604.52,1.188]
[1745477005913,1.26151995,605.67,604.52,1.188]
[1745477006419,0.2877674,605.66,604.52,1.188]
[1745477007420,0.2877674,605.66,604.52,2.423]
[1745477008123,1.26151995,605.67,604.52,2.423]
[1745477008421,1.26151995,605.66,604.52,2.423]
[1745477009419,0.28776859,605.65,604.52,2.423]
[1745477010924,1.26151995,605.62,604.52,2.423]
[1745477012025,1.26151995,605.62,604.52,3.656]
[1745477012417,0.28777335,605.61,604.52,3.656]
[1745477014121,1.26151995,605.62,604.52,3.656]
[1745477015426,0.28777335,605.61,604.52,3.656]
[1745477016027,1.26151995,605.58,604.52,3.656]
[1745477017526,0.28777811,605.57,604.52,3.656]
[1745477018919,1.26151995,605.52,604.52,3.656]
[1745477020424,0.28776146,605.51,604.52,3.656]
[1745477021524,1.26151995,605.47,604.52,3.656]
[1745477023427,0.2877674,605.46,604.52,3.656]
[1745477026130,1.26151995,605.59,604.52,3.656]
[1745477027132,1.26151995,605.68,604.52,3.656]
[1745477027431,0.28775313,605.58,604.52,3.656]
[1745477027826,1.26151995,605.68,604.52,3.656]
[1745477029233,0.28776384,605.67,604.52,3.656]
[1745477029928,1.26151995,605.65,604.52,3.656]
[1745477031932,1.26151995,605.54,604.52,3.656]
[1745477033331,1.26151995,605.54,604.52,5.412]
[1745477033533,0.28778049,605.53,604.52,5.412]
[1745477034232,1.54930044,605.53,604.52,5.412]
[1745477035229,1.26151995,605.53,604.52,5.412]
[1745477035429,0.28779001,605.52,604.52,5.412]
[1745477038138,1.26151995,605.65,604.52,5.412]
[1745477038439,0.28777454,605.51,604.52,5.412]
[1745477038635,1.26151995,605.65,604.52,5.412]
[1745477039437,0.28778406,605.64,604.52,5.412]
[1745477041238,1.26151995,605.65,604.52,5.412]
[1745477042343,0.2877912,605.64,604.52,5.412]
[1745477043041,1.54931115,605.64,604.52,5.412]
[1745477044138,1.26151995,605.64,604.52,5.412]
[1745477045238,1.26151995,605.44,604.52,5.412]
[1745477047243,1.26151995,605.41,604.52,5.412]
[1745477048448,0.28781977,605.4,604.52,5.412]
[1745477050244,1.26151995,605.41,604.52,5.412]
[1745477050544,1.26151995,605.5,604.52,5.412]
[1745477051445,0.28779239,605.49,604.52,5.412]
[1745477053148,1.26151995,605.58,604.52,5.412]
[1745477054450,0.28778287,605.57,604.52,5.412]
[1745477056146,1.26151995,605.58,604.52,5.412]
[1745477057451,0.28778287,605.57,604.52,5.412]
[1745477059152,1.26151995,605.58,604.52,5.412]
[1745477059353,1.26151995,605.55,604.52,5.412]
[1745477060456,0.28778644,605.54,604.52,5.412]
[1745477062152,2.14633602,606.26,604.52,5.412]
[1745477062153,1.26151995,605.31,604.52,5.412]
[1745477063457,0.28781381,605.3,604.52,5.412]
[1745477065258,1.26151995,605.31,604.52,5.412]
[1745477065460,0.28781262,605.29,604.52,5.412]
[1745477067956,1.26151995,605.25,604.52,5.412]
[1745477070263,1.26151995,605.24,604.52,5.412]
[1745477073163,0.28782096,605.26,604.52,5.412]
[1745477074163,1.26151995,605.28,604.52,5.412]
[1745477074565,0.28781619,605.27,604.52,5.412]
[1745477077162,1.26151995,605.31,604.52,5.412]
[1745477078567,0.28781262,605.3,604.52,5.412]
[1745477080170,1.26151995,605.28,604.52,5.412]
[1745477081469,0.28781619,605.27,604.52,5.412]
[1745477082469,1.26151995,605.26,604.52,5.412]
[1745477083571,1.54933853,605.26,604.52,5.412]
[1745477085072,0.28781858,605.26,604.52,5.412]
[1745477086173,1.26151995,605.53,604.52,5.412]
[1745477087474,0.28778644,605.52,604.52,5.412]
[1745477089176,1.26151995,605.6,604.52,5.412]
[1745477089976,1.26151995,606.05,604.52,5.412]
[1745477090576,0.28772458,606.04,604.52,5.412]
[1745477092177,1.26151995,606.05,604.52,5.412]
[1745477092674,0.28772458,606.04,604.52,5.412]
[1745477094779,1.26151995,605.97,604.52,5.412]
[1745477096479,0.28773409,605.96,604.52,5.412]
[1745477098180,1.26151995,605.97,604.52,5.412]
[1745477098981,1.26151995,605.92,604.52,5.412]
[1745477099480,0.28772577,605.91,604.52,5.412]
[1745477101078,1.26151995,605.92,604.52,5.412]
[1745477101279,1.26151995,605.32,604.52,5.412]
[1745477102482,1.5493171,605.32,604.52,5.412]
[1745477103583,0.28779715,605.32,604.52,5.412]
[1745477104180,1.26151995,605.35,604.52,5.412]
[1745477105384,0.28779358,605.34,604.52,5.412]
[1745477105687,1.26151995,605.3,604.52,5.412]
[1745477107887,0.28779953,605.32,604.52,5.412]
[1745477110289,1.26151995,605.43,604.52,5.412]
[1745477110489,1.26151995,605.42,604.52,5.412]
[1745477110687,0.28778406,605.32,604.52,5.412]
[1745477110891,1.26151995,605.42,604.52,5.412]
[1745477111691,0.28778525,605.41,604.52,5.412]
[1745477113186,1.26151995,605.61,604.52,5.412]
[1745477114493,0.28774123,605.6,604.52,5.412]
[1745477119201,1.26151995,605.8,604.52,5.412]
[1745477120403,1.26151995,605.89,604.52,5.412]
[1745477120603,0.28770912,605.79,604.52,5.412]
[1745477120799,1.26151995,605.89,604.52,5.412]
[1745477121703,0.28769841,605.88,604.52,5.412]
[1745477122806,1.26151995,605.75,604.52,5.412]
[1745477125502,0.28773647,605.74,604.52,5.412]
[1745477126211,1.26151995,605.61,604.52,5.412]
[1745477129410,0.28777692,605.6,604.52,5.412]
[1745477131111,1.26151995,605.68,604.52,5.412]
[1745477131711,1.26151995,605.68,604.52,4.224]
[1745477132503,0.28774718,605.67,604.52,4.224]
[1745477132910,0.28774718,605.67,604.52,2.468]
[1745477134110,1.26151995,605.68,604.52,2.468]
[1745477134415,1.26151995,605.62,604.52,2.468]
[1745477134815,1.26151995,605.62,604.52,1.235]
[1745477135415,0.28775432,605.61,604.52,1.235]
[1745477135614,0.28775432,605.61,603.99,0.28775432]
[1745477135814,0.28775432,605.61,604.0,1.45656602]
[1745477136013,0.28775432,605.61,604.01,1.45656602]
[1745477136212,0.28775432,605.61,604.02,1.45659541]
[1745477136416,0.28775432,605.61,604.03,2.53207459]
[1745477136617,0.28775432,605.61,604.04,1.45659541]
[1745477136913,0.28775432,605.61,604.05,2.53207459]
[1745477137118,0.28775432,605.61,604.06,1.45659541]
[1745477137319,1.26151995,605.72,604.07,1.45659541]
[1745477137618,1.26151995,605.72,604.08,2.53213311]
[1745477137820,1.26151995,605.72,604.09,1.45665393]
[1745477138013,1.26151995,605.72,604.1,2.53213311]
[1745477138219,1.26151995,605.72,604.11,2.53215245]
[1745477138414,1.26151995,605.72,604.12,1.45667327]
[1745477138718,1.26151995,605.72,604.13,2.53215245]
[1745477138719,0.28779239,605.71,604.13,2.53215245]
[1745477138918,0.28779239,605.71,604.14,1.45667327]
[1745477139112,0.28779239,605.71,604.15,1.45667327]
[1745477139316,0.28779239,605.71,604.16,1.45667327]
[1745477139519,0.28779239,605.71,604.17,2.53215245]
[1745477139719,0.28779239,605.71,604.18,2.53215245]
[1745477140014,1.54931234,605.71,604.19,1.45667327]
[1745477140219,1.26151995,605.71,604.2,1.45667327]
[1745477140517,1.26151995,605.71,604.21,1.45667327]
[1745477140720,1.26151995,605.71,604.22,1.9211627]
[1745477140915,1.26151995,605.71,604.23,0.84568352]
[1745477141419,1.26151995,605.71,604.24,1.07547918]
[1745477141620,0.28779477,605.7,604.24,1.07547918]
[1745477141817,0.28779477,605.7,604.25,1.07547918]
[1745477142322,0.28779477,605.7,604.26,1.07547918]
[1745477142716,0.28779477,605.7,604.27,1.07547918]
[1745477143321,0.28779477,605.7,604.28,1.07547918]
[1745477144219,1.26151995,605.68,604.28,1.07547918]
[1745477144518,1.26151995,605.68,604.29,1.07547918]
[1745477144818,1.26151995,605.68,604.3,1.07547918]
[1745477145122,1.26151995,605.68,604.31,1.07547918]
[1745477146026,1.26151995,605.68,604.32,1.07547918]
[1745477146424,1.26151995,605.68,604.33,1.07547918]
[1745477146724,1.26151995,605.68,604.34,1.07547918]
[1745477147126,1.26151995,605.68,604.35,1.07547918]
[1745477147520,0.28778406,605.67,604.35,1.07547918]
[1745477147726,1.26151995,605.58,604.36,1.07547918]
[1745477147926,1.26151995,605.58,604.37,1.07547918]
[1745477148626,1.26151995,605.58,604.38,1.07547918]
[1745477149326,1.26151995,605.58,604.39,1.07547918]
[1745477149828,1.26151995,605.58,603.67,1.1]
[1745477150123,1.26151995,605.58,603.68,1.45595147]
[1745477150329,1.26151995,605.58,603.69,2.83496841]
[1745477150628,0.28786024,605.57,603.7,1.75992183]
[1745477150828,0.28786024,605.57,603.71,1.75992183]
[1745477151129,0.28786024,605.57,603.72,2.83496022]
[1745477151423,0.28786024,605.57,603.73,1.75991364]
[1745477151729,0.28786024,605.57,603.74,2.83496022]
[1745477151926,0.28786024,605.57,603.75,1.75991364]
[1745477152124,0.28786024,605.57,603.76,2.83496022]
[1745477152323,1.26151995,605.7,603.77,1.75991364]
[1745477152627,1.26151995,605.7,603.78,2.83496022]
[1745477152830,1.26151995,605.7,603.79,1.75991364]
[1745477153027,1.26151995,605.7,603.8,2.83496022]
[1745477153224,1.26151995,605.7,603.81,1.75991364]
[1745477153529,0.28783048,605.69,603.82,1.45595147]
[1745477153829,0.28783048,605.69,603.83,1.75992071]
[1745477154030,0.28783048,605.69,603.84,1.45595147]
[1745477154224,0.28783048,605.69,603.85,1.45595147]
[1745477154528,0.28783048,605.69,603.86,1.45595147]
[1745477154729,0.28783048,605.69,603.77,1.492]
[1745477154730,0.28783048,605.69,603.87,2.53099805]
[1745477154932,0.28783048,605.69,603.88,1.45595147]
[1745477155233,1.26151995,605.77,603.89,1.45595147]
[1745477155425,1.26151995,605.77,603.9,1.45595147]
[1745477155624,1.26151995,605.77,603.91,1.45595147]
[1745477155825,1.26151995,605.77,603.92,2.53099805]
[1745477156028,1.26151995,605.77,603.93,1.45595147]
[1745477156226,1.26151995,605.77,603.94,1.45595147]
[1745477156428,1.26151995,605.77,603.95,2.53099805]
[1745477156630,0.28780667,605.76,603.96,1.45595147]
[1745477156826,0.28780667,605.76,603.97,1.45598815]
[1745477157030,0.28780667,605.76,603.98,2.53103473]
[1745477157225,0.28780667,605.76,603.99,2.53103473]
[1745477157431,0.28780667,605.76,604.0,1.45598815]
[1745477157730,0.28780667,605.76,604.01,1.45598815]
[1745477157930,0.28780667,605.76,604.02,1.45598815]
[1745477158130,1.26151995,605.61,604.03,1.45598815]
[1745477158326,1.26151995,605.61,604.04,2.53103473]
[1745477158524,1.26151995,605.61,604.05,1.45598815]
[1745477158729,1.26151995,605.61,604.06,1.45598815]
[1745477158928,1.26151995,605.61,604.07,1.45598815]
[1745477159130,1.26151995,605.61,604.08,1.45598815]
[1745477159325,1.26151995,605.61,604.09,1.45598815]
[1745477159527,0.28780905,605.6,604.1,1.45598815]
[1745477159729,0.28780905,605.6,604.11,2.53103473]
[1745477159927,0.28780905,605.6,604.12,1.45598815]
[1745477160132,0.28780905,605.6,604.13,1.45598815]
[1745477160332,0.28780905,605.6,604.11,1.07504658]
[1745477160333,0.28780905,605.6,604.14,1.45598815]
[1745477160627,0.28780905,605.6,604.15,1.45572619]
[1745477160833,1.26151995,605.58,604.16,1.45572619]
[1745477161134,1.26151995,605.58,604.17,1.45572619]
[1745477161337,1.26151995,605.58,604.18,1.45572619]
[1745477161635,1.26151995,605.58,604.19,1.45572619]
[1745477161830,1.26151995,605.58,604.2,1.45572619]
[1745477162034,1.26151995,605.58,604.21,1.45572619]
[1745477162236,1.26151995,605.58,604.22,1.45572619]
[1745477162435,1.26151995,605.58,604.23,1.45572619]
[1745477162736,1.26151995,605.58,604.24,2.53077277]
[1745477163031,1.26151995,605.58,604.25,1.45572619]
[1745477163235,1.26151995,605.58,604.24,1.07504658]
[1745477163236,1.26151995,605.58,604.26,1.45572619]
[1745477163437,0.28780905,605.6,604.24,1.07504658]
[1745477163438,1.26151995,605.51,604.27,1.45572619]
[1745477163635,1.26151995,605.51,604.28,1.45572619]
[1745477163932,1.26151995,605.51,604.29,1.45572619]
[1745477164135,1.26151995,605.51,604.3,1.45572619]
[1745477164336,1.26151995,605.51,604.31,1.45572619]
[1745477164535,1.26151995,605.51,604.32,0.84500107]
[1745477164732,1.26151995,605.51,604.33,0.84500107]
[1745477165038,1.26151995,605.51,604.34,1.07504658]
[1745477165438,0.28778882,605.5,604.34,1.07504658]
[1745477165740,0.28778882,605.5,604.35,0.84493699]
[1745477165937,0.28778882,605.5,604.35,1.07504658]
[1745477166740,0.28778882,605.5,604.36,1.07504658]
[1745477167139,0.28778882,605.5,604.37,1.07504658]
[1745477167338,1.26151995,605.65,604.37,1.07504658]
[1745477167534,1.26151995,605.65,604.38,1.07504658]
[1745477167737,0.28776859,605.49,604.38,1.07504658]
[1745477168038,1.26151995,605.65,604.39,1.07504658]
[1745477168334,1.26151995,605.65,604.4,1.07504658]
[1745477168535,1.26151995,605.65,604.41,1.07504658]
[1745477168738,0.28776621,605.64,604.41,1.07504658]
[1745477168937,0.28776621,605.64,604.42,1.07504658]
[1745477169242,0.28776621,605.64,604.43,1.07504658]
[1745477170036,0.28776621,605.64,604.44,1.07504658]
[1745477170341,1.26151995,606.04,604.44,1.07504658]
[1745477170542,0.28770555,605.63,604.45,1.07504658]
[1745477170741,1.26151995,606.04,604.45,1.07504658]
[1745477171036,1.26151995,606.04,604.0,1.486]
[1745477171239,1.26151995,606.04,604.01,2.52991755]
[1745477171442,1.26151995,606.04,604.02,1.45534637]
[1745477171642,0.2877567,606.03,604.03,2.52991755]
[1745477171843,0.2877567,606.03,604.04,2.52991755]
[1745477172043,1.54927665,606.03,604.05,1.45534637]
[1745477172241,1.54927665,606.03,604.06,1.45534637]
[1745477172539,1.54927665,606.03,604.07,1.45534637]
[1745477172744,1.54927665,606.03,604.08,2.52991755]
[1745477172939,1.54927665,606.03,604.09,1.45534637]
[1745477173143,1.54927665,606.03,604.08,1.07457118]
[1745477173144,1.54927665,606.03,604.1,1.45534637]
[1745477173337,1.26151995,606.03,604.11,1.45534637]
[1745477173539,1.26151995,606.03,604.12,1.45534637]
[1745477173744,0.28774599,606.02,604.13,1.45534637]
[1745477173944,0.28774599,606.02,604.14,2.52991755]
[1745477174142,0.28774599,606.02,604.15,1.45534637]
[1745477174338,0.28774599,606.02,604.16,2.52991755]
[1745477174539,0.28774599,606.02,604.17,1.45534637]
[1745477174843,0.28774599,606.02,604.18,2.52975406]
[1745477175045,0.28774599,606.02,604.19,1.45518288]
[1745477175241,0.28774599,606.02,604.2,1.45518288]
[1745477175438,0.28774599,606.02,604.21,1.45518288]
[1745477175638,0.28774599,606.02,604.22,1.45518288]
[1745477175839,0.28774599,606.02,604.23,2.52975406]
[1745477176039,0.28774599,606.02,604.24,1.45518288]
[1745477176244,1.26151995,606.04,604.25,1.45518288]